fUSD/lending_fUSD_20241202
["ID","MTS","AMOUNT","RATE_DAILY","PERIOD"]
[343976707,1733165559134,500.0,0.00025,120]
[343976708,1733165560076,1134.59,0.00025,120]
[343976709,1733165560298,5192.52,0.00025,120]
[343976710,1733165560997,500.0,0.00025,120]
[343976711,1733165561730,2344.54,0.00025,120]
[343976712,1733165562397,2743.56,0.00025,120]
[343976713,1733165562513,903.21,0.00025,120]
[343976714,1733165563899,4512.52,0.00025,120]
[343976715,1733165564009,500.0,0.00025,120]
[343976716,1733165564945,781.38,0.00025,120]
[343976717,1733165567118,2470.15,0.00025,120]
[343976718,1733165567390,1062.78,0.00025,120]
[343976719,1733165567608,731.09,0.00025,120]
[343976720,1733165567755,500.0,0.00025,120]
[343976721,1733165567880,9794.56,0.00025,120]
[343976722,1733165568207,922.18,0.00025,120]
[343976723,1733165568504,2291.15,0.00025,120]
[343976724,1733165568607,870.88,0.00025,120]
[343976725,1733165568863,781.21,0.00025,120]
[343976726,1733165568913,14168.1,0.00025,120]
[343976727,1733165568980,27836.43,0.00025,120]
[343976728,1733165569441,1000.0,0.00025,120]
[343976729,1733165569535,1844.28,0.00025,120]
[343976730,1733165570204,3610.17,0.00025,120]
[343976731,1733165570694,500.0,0.00025,120]
[343976732,1733165571283,1286.56,0.00025,120]
[343976733,1733165572113,500.0,0.00025,120]
[343976734,1733165572535,5553.69,0.00025,120]
[343976735,1733165572619,6009.87,0.00025,120]
[343976736,1733165576062,500.0,0.00025,120]
[343976737,1733165576389,938.71,0.00025,120]
[343976738,1733165577060,500.0,0.00025,120]
[343976739,1733165577318,520.88,0.00025,120]
[343976740,1733165577375,1724.87,0.00025,120]
[343976741,1733165577438,500.0,0.00025,120]
[343976742,1733165577557,2517.84,0.00025,120]
[343976743,1733165577635,3145.91,0.00025,120]
[343976744,1733165577825,500.0,0.00025,120]
[343976745,1733165578117,3520.73,0.00025,120]
[343976746,1733165578605,1049.47,0.00025,120]
[343976747,1733165579076,500.0,0.00025,120]
[343976748,1733165580328,724.7,0.00025,120]
[343976749,1733165580402,642.4,0.00025,120]
[343976750,1733165581217,500.0,0.00025,120]
[343976751,1733165581283,19291.75,0.00025,120]
[343976752,1733165581452,278.33596874,0.00025,120]
[343976753,1733165581706,1515.31,0.00025,120]
[343976754,1733165581757,2902.37,0.00025,120]
[343976755,1733165581803,500.0,0.00025,120]
[343976756,1733165583689,500.0,0.00025,120]
[343976757,1733165584056,7452.36,0.00025,120]
[343976758,1733165586136,500.0,0.00025,120]
[343976759,1733165586223,2659.16,0.00025,120]
[343976760,1733165586330,500.0,0.00025,120]
[343976761,1733165586466,7782.22,0.00025,120]
[343976762,1733165586720,8479.72,0.00025,120]
[343976763,1733165588074,3451.26,0.00025,120]
[343976764,1733165588126,927.9,0.00025,120]
[343976765,1733165588736,2952.5,0.00025,120]
[343976766,1733165588911,4585.2,0.00025,120]
[343976767,1733165590650,2424.15,0.00025,120]
[343976768,1733165590788,500.0,0.00025,120]
[343976769,1733165591763,500.0,0.00025,120]
[343976770,1733165592049,500.0,0.00025,120]
[343976771,1733165592741,844.0,0.00025,120]
[343976772,1733165593423,5598.25,0.00025,120]
[343976773,1733165593597,2413.87,0.00025,120]
[343976774,1733165594018,3593.89,0.00025,120]
[343976775,1733165594440,500.0,0.00025,120]
[343976776,1733165595666,500.0,0.00025,120]
[343976777,1733165597133,548.74997816,0.00025,120]
[343976778,1733165597461,5950.5,0.00025,120]
[343976779,1733165597929,1893.61,0.00025,120]
[343976780,1733165599221,2703.59,0.00025,120]
[343976781,1733165599628,500.0,0.00025,120]
[343976782,1733165599677,582.23,0.00025,120]
[343976783,1733165599885,500.0,0.00025,120]
[343976785,1733165599938,500.0,0.00025,120]
[343976786,1733165601398,6074.71,0.00025,120]
[343976787,1733165601912,500.0,0.00025,120]
[343976788,1733165602092,33129.94,0.00025,120]
[343976789,1733165602200,870.02,0.00025,120]
[343976790,1733165602366,1212.25,0.00025,120]
[343976791,1733165603544,4021.84,0.00025,120]
[343976792,1733165603774,2812.6,0.00025,120]
[343976793,1733165603964,500.0,0.00025,120]
[343976794,1733165605290,535.76,0.00025,120]
[343976795,1733165607944,2607.43,0.00025,120]
[343976796,1733165608218,500.0,0.00025,120]
[343976797,1733165608284,500.0,0.00025,120]
[343976798,1733165608528,500.0,0.00025,120]
[343976799,1733165610348,1598.8,0.00025,120]
[343976800,1733165610395,500.0,0.00025,120]
[343976801,1733165611062,729.35,0.00025,120]
[343976802,1733165611113,4954.18,0.00025,120]
[343976803,1733165611747,4782.02,0.00025,120]
[343976804,1733165611807,500.0,0.00025,120]
[343976805,1733165612161,3042.18,0.00025,120]
[343976806,1733165612208,3641.96,0.00025,120]
[343976807,1733165613353,1332.35,0.00025,120]
[343976808,1733165613730,500.0,0.00025,120]
[343976809,1733165613973,500.0,0.00025,120]
[343976810,1733165614191,596.12,0.00025,120]
[343976811,1733165614822,2636.78,0.00025,120]
[343976812,1733165615131,11900.25,0.00025,120]
[343976813,1733165616348,500.0,0.00025,120]
[343976814,1733165617325,2608.26,0.00025,120]
[343976815,1733165617677,3519.77,0.00025,120]
[343976816,1733165617731,1571.22,0.00025,120]
[343976817,1733165618790,156.10305346,0.00025,120]
[343976818,1733165619875,500.0,0.00025,120]
[343976819,1733165620111,500.0,0.00025,120]
[343976820,1733165621299,2377.41,0.00025,120]
[343976821,1733165621462,500.0,0.00025,120]
[343976822,1733165621524,643.13,0.00025,120]
[343976823,1733165621568,500.0,0.00025,120]
[343976824,1733165621648,21984.22,0.00025,120]
[343976825,1733165621693,500.0,0.00025,120]
[343976826,1733165621742,2586.33,0.00025,120]
[343976827,1733165622002,177.75670442,0.00025,120]
[343976828,1733165622100,500.0,0.00025,120]
[343976829,1733165622552,630.71,0.00025,120]
[343976830,1733165622602,1293.6,0.00025,120]
[343976831,1733165623849,674.07,0.00025,120]
[343976832,1733165624871,9291.72,0.00025,120]
[343976833,1733165625186,500.0,0.00025,120]
[343976834,1733165625778,500.0,0.00025,120]
[343976835,1733165626424,500.0,0.00025,120]
[343976836,1733165626550,3498.74,0.00025,120]
[343976837,1733165626663,2299.96,0.00025,120]
[343976838,1733165627614,3365.09,0.00025,120]
[343976839,1733165627864,500.0,0.00025,120]
[343976840,1733165628164,846.42,0.00025,120]
[343976841,1733165629697,2044.35,0.00025,120]
[343976842,1733165630678,500.0,0.00025,120]
[343976843,1733165630965,2204.82,0.00025,120]
[343976844,1733165631008,9985.82,0.00025,120]
[343976845,1733165631723,586.52457902,0.00025,120]
[343976846,1733165632591,538.20071993,0.00025,120]
[343976847,1733165633018,18588.41,0.00025,120]
[343976848,1733165633179,500.0,0.00025,120]
[343976849,1733165633244,500.0,0.00025,120]
[343976850,1733165633923,691.78,0.00025,120]
[343976851,1733165634237,9803.97,0.00025,120]
[343976852,1733165634948,626.43,0.00025,120]
[343976853,1733165635551,500.0,0.00025,120]
[343976854,1733165635692,500.0,0.00025,120]
[343976855,1733165635864,500.0,0.00025,120]
[343976856,1733165636034,500.0,0.00025,120]
[343976857,1733165636165,777.1,0.00025,120]
[343976858,1733165636212,500.0,0.00025,120]
[343976859,1733165638069,500.0,0.00025,120]
[343976860,1733165638193,500.0,0.00025,120]
[343976861,1733165638237,500.0,0.00025,120]
[343976862,1733165638851,1599.85,0.00025,120]
[343976863,1733165641404,500.0,0.00025,120]
[343976864,1733165642472,4984.09,0.00025,120]
[343976865,1733165642627,4473.67,0.00025,120]
[343976866,1733165642866,1985.78,0.00025,120]
[343976867,1733165643302,500.0,0.00025,120]
[343976869,1733165643972,1637.96,0.00025,120]
[343976870,1733165644039,5866.26,0.00025,120]
[343976871,1733165644086,500.0,0.00025,120]
[343976872,1733165644146,2352.49,0.00025,120]
[343976873,1733165644627,500.0,0.00025,120]
[343976874,1733165645279,1148.99,0.00025,120]
[343976875,1733165645340,1438.97,0.00025,120]
[343976876,1733165645398,2062.13,0.00025,120]
[343976877,1733165646827,704.36,0.00025,120]
[343976878,1733165647668,2501.67,0.00025,120]
[343976879,1733165648454,1021.16,0.00025,120]
[343976880,1733165648892,500.0,0.00025,120]
[343976881,1733165649330,500.0,0.00025,120]
[343976882,1733165649817,1923.67,0.00025,120]
[343976883,1733165650074,2813.32,0.00025,120]
[343976884,1733165651888,500.0,0.00025,120]
[343976885,1733165652328,500.0,0.00025,120]
[343976886,1733165652502,500.0,0.00025,120]
[343976887,1733165653943,14290.36,0.00025,120]
[343976888,1733165654002,630.27,0.00025,120]
[343976889,1733165654195,6264.75,0.00025,120]
[343976890,1733165654663,500.0,0.00025,120]
[343976891,1733165655371,1662.01,0.00025,120]
[343976892,1733165655465,1670.88,0.00025,120]
[343976893,1733165655544,1107.35,0.00025,120]
[343976894,1733165656142,1288.06,0.00025,120]
[343976895,1733165657064,500.0,0.00025,120]
[343976896,1733165657326,917.69,0.00025,120]
[343976897,1733165657645,500.0,0.00025,120]
[343976898,1733165658612,4987.05,0.00025,120]
[343976900,1733165659062,587.65,0.00025,120]
[343976901,1733165659201,559.97323292,0.00025,120]
[343976902,1733165659446,6143.84,0.00025,120]
[343976903,1733165659908,1008.78,0.00025,120]
[343976904,1733165660090,3171.64,0.00025,120]
[343976905,1733165660156,500.0,0.00025,120]
[343976906,1733165661343,617.37,0.00025,120]
[343976907,1733165664783,758.74,0.00025,120]
[343976908,1733165664830,2597.94,0.00025,120]
[343976909,1733165665160,1475.55,0.00025,120]
[343976910,1733165666687,500.0,0.00025,120]
[343976911,1733165666960,500.0,0.00025,120]
[343976912,1733165667247,6853.44,0.00025,120]
[343976913,1733165667405,1927.62,0.00025,120]
[343976914,1733165667852,500.0,0.00025,120]
[343976915,1733165670359,2598.79,0.00025,120]
[343976916,1733165670797,569.95,0.00025,120]
[343976917,1733165670841,959.96,0.00025,120]
[343976918,1733165671183,500.0,0.00025,120]
[343976919,1733165671285,500.0,0.00025,120]
[343976920,1733165672126,33260.19,0.00025,120]
[343976921,1733165674600,500.0,0.00025,120]
[343976922,1733165675958,500.0,0.00025,120]
[343976923,1733165676477,1616.44,0.00025,120]
[343976924,1733165677046,1481.43,0.00025,120]
[343976925,1733165677517,1937.79,0.00025,120]
[343976926,1733165678304,2582.4,0.00025,120]
[343976927,1733165678411,5807.51,0.00025,120]
[343976928,1733165678689,1596.88,0.00025,120]
[343976929,1733165680210,500.0,0.00025,120]
[343976930,1733165680325,1065.49,0.00025,120]
[343976931,1733165681699,3572.2,0.00025,120]
[343976932,1733165682351,743.16,0.00025,120]
[343976933,1733165682722,8311.29,0.00025,120]
[343976934,1733165683376,3045.75,0.00025,120]
[343976935,1733165684672,3876.86,0.00025,120]
[343976936,1733165685004,2889.97,0.00025,120]
[343976937,1733165685780,500.0,0.00025,120]
[343976938,1733165686181,906.54,0.00025,120]
[343976939,1733165687078,500.0,0.00025,120]
[343976940,1733165687369,500.0,0.00025,120]
[343976941,1733165688475,1345.31,0.00025,120]
[343976942,1733165688555,880.54,0.00025,120]
[343976943,1733165688653,592.44,0.00025,120]
[343976944,1733165688750,553.16920977,0.00025,120]
[343976945,1733165688856,500.0,0.00025,120]
[343976946,1733165690040,2313.44,0.00025,120]
[343976947,1733165691925,500.0,0.00025,120]
[343976948,1733165692476,1356.09,0.00025,120]
[343976949,1733165692679,11182.2,0.00025,120]
[343976950,1733165692731,1052.52,0.00025,120]
[343976951,1733165692831,500.0,0.00025,120]
[343976952,1733165693912,500.0,0.00025,120]
[343976953,1733165694192,500.0,0.00025,120]
[343976954,1733165694343,3114.05,0.00025,120]
[343976955,1733165694432,1852.54,0.00025,120]
[343976956,1733165695475,21540.94,0.00025,120]
[343976957,1733165696128,500.0,0.00025,120]
[343976958,1733165696177,1877.68,0.00025,120]
[343976959,1733165696629,1378.0,0.00025,120]
[343976960,1733165697575,526.93,0.00025,120]
[343976961,1733165697809,3055.25,0.00025,120]
[343976962,1733165698531,207.18089186,0.00025,120]
[343976963,1733165698581,500.0,0.00025,120]
[343976964,1733165699121,500.0,0.00025,120]
[343976965,1733165700654,1304.7,0.00025,120]
[343976966,1733165701151,6382.09,0.00025,120]
[343976967,1733165702085,546.9,0.00025,120]
[343976968,1733165702981,1110.86,0.00025,120]
[343976969,1733165703074,500.0,0.00025,120]
[343976970,1733165704042,500.0,0.00025,120]
[343976971,1733165704668,948.38,0.00025,120]
[343976972,1733165704793,2372.91,0.00025,120]
[343976973,1733165705192,3307.19,0.00025,120]
[343976974,1733165706916,7083.26,0.00025,120]
[343976975,1733165706993,500.0,0.00025,120]
[343976976,1733165707537,558.03,0.00025,120]
[343976977,1733165708638,500.0,0.00025,120]
[343976979,1733165709127,500.0,0.00025,120]
[343976980,1733165710536,2882.14,0.00025,120]
[343976981,1733165710598,2359.84,0.00025,120]
[343976982,1733165710952,4366.78,0.00025,120]
[343976983,1733165711554,3841.33,0.00025,120]
[343976984,1733165712617,1453.28,0.00025,120]
[343976985,1733165712871,619.77,0.00025,120]
[343976986,1733165713443,500.0,0.00025,120]
[343976987,1733165714478,546.91,0.00025,120]
[343976988,1733165715199,500.0,0.00025,120]
[343976989,1733165715439,500.0,0.00025,120]
[343976990,1733165715600,2363.4,0.00025,120]
[343976991,1733165715834,500.0,0.00025,120]
[343976992,1733165717787,5543.44,0.00025,120]
[343976993,1733165717840,500.0,0.00025,120]
[343976994,1733165718122,2167.09,0.00025,120]
[343976995,1733165718454,500.0,0.00025,120]
[343976996,1733165719854,3679.9,0.00025,120]
[343976997,1733165720301,829.94,0.00025,120]
[343976998,1733165720575,3090.43,0.00025,120]
[343976999,1733165721059,3689.18,0.00025,120]
[343977000,1733165721788,1181.98,0.00025,120]
[343977001,1733165721971,500.0,0.00025,120]
[343977002,1733165722216,2629.24,0.00025,120]
[343977003,1733165722267,1123.94,0.00025,120]
[343977004,1733165722787,1531.23,0.00025,120]
[343977005,1733165723554,500.0,0.00025,120]
[343977006,1733165723940,2156.5,0.00025,120]
[343977008,1733165724924,21701.88,0.00025,120]
[343977009,1733165724980,500.0,0.00025,120]
[343977010,1733165725739,2617.25,0.00025,120]
[343977011,1733165726056,500.0,0.00025,120]
[343977012,1733165726305,896.67,0.00025,120]
[343977013,1733165726657,309.71,6.946e-05,2]
[343977014,1733165726738,3471.03,0.00025,120]
[343977015,1733165727198,500.0,0.00025,120]
[343977016,1733165727253,1287.69,0.00025,120]
[343977017,1733165728751,500.0,0.00025,120]
[343977018,1733165730403,1198.94,0.00025,120]
[343977019,1733165731378,500.0,0.00025,120]
[343977020,1733165731694,670.73,0.00025,120]
[343977021,1733165731752,571.69,0.00025,120]
[343977022,1733165732065,1126.23,0.00025,120]
[343977023,1733165732444,500.0,0.00025,120]
[343977024,1733165732590,790.3,0.00025,120]
[343977025,1733165732703,12797.35,0.00025,120]
[343977026,1733165732875,889.22,0.00025,120]
[343977027,1733165732961,1638.72,0.00025,120]
[343977028,1733165733694,1491.34,0.00025,120]
[343977029,1733165733901,500.0,0.00025,120]
[343977030,1733165734524,843.38,0.00025,120]
[343977031,1733165735238,861.5,0.00025,120]
[343977032,1733165735918,500.0,0.00025,120]
[343977033,1733165735984,500.0,0.00025,120]
[343977034,1733165736079,2210.53,0.00025,120]
[343977035,1733165736221,500.0,0.00025,120]
[343977036,1733165736945,514.25,0.00025,120]
[343977037,1733165737964,3065.16,0.00025,120]
[343977038,1733165740201,500.0,0.00025,120]
[343977039,1733165740845,14354.14,0.00025,120]
[343977040,1733165741244,500.0,0.00025,120]
[343977041,1733165741409,1582.25,0.00025,120]
[343977042,1733165741924,500.0,0.00025,120]
[343977043,1733165742242,500.0,0.00025,120]
[343977044,1733165743184,500.0,0.00025,120]
[343977045,1733165743498,500.0,0.00025,120]
[343977046,1733165743668,500.0,0.00025,120]
[343977047,1733165744496,2499.67,0.00025,120]
[343977048,1733165744960,7779.57,0.00025,120]
[343977049,1733165745521,1244.2,0.00025,120]
[343977050,1733165745913,500.0,0.00025,120]
[343977051,1733165745994,1208.12,0.00025,120]
[343977052,1733165746163,9208.54,0.00025,120]
[343977053,1733165746403,1033.13,0.00025,120]
[343977054,1733165746894,865.51,0.00025,120]
[343977055,1733165748074,2529.42,0.00025,120]
[343977056,1733165748151,7141.85,0.00025,120]
[343977057,1733165751498,500.0,0.00025,120]
[343977058,1733165752671,1106.07,0.00025,120]
[343977059,1733165752911,749.94,0.00025,120]
[343977060,1733165753155,2720.84,0.00025,120]
[343977061,1733165753619,500.0,0.00025,120]
[343977062,1733165753672,500.0,0.00025,120]
[343977063,1733165753722,500.0,0.00025,120]
[343977064,1733165753898,500.0,0.00025,120]
[343977065,1733165755762,1239.68,0.00025,120]
[343977066,1733165755946,948.06,0.00025,120]
[343977067,1733165756112,1021.82,0.00025,120]
[343977068,1733165756177,2685.42,0.00025,120]
[343977069,1733165757430,500.0,0.00025,120]
[343977070,1733165757614,13577.76,0.00025,120]
[343977071,1733165758354,3261.66,0.00025,120]
[343977072,1733165759304,500.0,0.00025,120]
[343977073,1733165759522,2417.97,0.00025,120]
[343977074,1733165760021,3834.63,0.00025,120]
[343977075,1733165760114,504.32,0.00025,120]
[343977076,1733165763046,770.61,0.00025,120]
[343977077,1733165763522,500.0,0.00025,120]
[343977078,1733165763941,500.0,0.00025,120]
[343977079,1733165764381,500.0,0.00025,120]
[343977080,1733165765270,5311.42,0.00025,120]
[343977081,1733165765743,500.0,0.00025,120]
[343977082,1733165766765,500.0,0.00025,120]
[343977083,1733165768273,500.0,0.00025,120]
[343977084,1733165768529,1201.21,0.00025,120]
[343977085,1733165769175,7565.47,0.00025,120]
[343977086,1733165769723,694.5,0.00025,120]
[343977087,1733165770597,3838.5,0.00025,120]
[343977088,1733165770939,21490.7,0.00025,120]
[343977089,1733165771226,930.55,0.00025,120]
[343977090,1733165773013,1977.47,0.00025,120]
[343977091,1733165773255,500.0,0.00025,120]
[343977092,1733165773462,2208.57,0.00025,120]
[343977093,1733165774126,5983.76,0.00025,120]
[343977094,1733165775832,500.0,0.00025,120]
[343977095,1733165776330,1041.2,0.00025,120]
[343977096,1733165777161,500.0,0.00025,120]
[343977097,1733165778071,1362.7,0.00025,120]
[343977098,1733165778415,5474.54,0.00025,120]
[343977099,1733165780105,642.17,0.00025,120]
[343977100,1733165780190,2646.58,0.00025,120]
[343977101,1733165780241,1379.67,0.00025,120]
[343977102,1733165780310,455.7287301,0.00025,120]
[343977103,1733165781048,1352.74,0.00025,120]
[343977104,1733165781157,500.0,0.00025,120]
[343977105,1733165781348,1675.84,0.00025,120]
[343977106,1733165781406,500.0,0.00025,120]
[343977107,1733165782259,500.0,0.00025,120]
[343977108,1733165784067,1858.26,0.00025,120]
[343977109,1733165784992,1218.06,0.00025,120]
[343977110,1733165785859,738.08,0.00025,120]
[343977111,1733165786279,1500.0,0.00025,120]
[343977113,1733165787098,799.17,0.00025,120]
[343977114,1733165787353,500.0,0.00025,120]
[343977115,1733165787862,542.51,0.00025,120]
[343977116,1733165788586,557.97,0.00025,120]
[343977117,1733165789594,30422.66,0.00025,120]
[343977119,1733165789770,500.0,0.00025,120]
[343977120,1733165789884,3262.95,0.00025,120]
[343977121,1733165790251,1390.28,0.00025,120]
[343977122,1733165790434,2318.75,0.00025,120]
[343977123,1733165790769,2179.16,0.00025,120]
[343977124,1733165791888,2783.12,0.00025,120]
[343977126,1733165792447,500.0,0.00025,120]
[343977127,1733165793401,986.93,0.00025,120]
[343977129,1733165795394,500.0,0.00025,120]
[343977130,1733165795493,500.0,0.00025,120]
[343977131,1733165795669,500.0,0.00025,120]
[343977132,1733165796129,1318.47,0.00025,120]
[343977133,1733165796888,4976.17,0.00025,120]
[343977134,1733165797536,2742.13,0.00025,120]
[343977135,1733165797752,13189.45,0.00025,120]
[343977136,1733165797817,500.0,0.00025,120]
[343977137,1733165798102,556.91,0.00025,120]
[343977138,1733165798395,500.0,0.00025,120]
[343977139,1733165799510,747.83,0.00025,120]
[343977140,1733165799730,534.53881591,0.00025,120]
[343977141,1733165800437,2547.06,0.00025,120]
[343977142,1733165801174,771.03,0.00025,120]
[343977143,1733165801779,1547.91,0.00025,120]
[343977145,1733165804542,1942.5,0.00025,120]
[343977146,1733165804607,811.16,0.00025,120]
[343977147,1733165804712,500.0,0.00025,120]
[343977148,1733165804765,500.0,0.00025,120]
[343977149,1733165804844,1233.62,0.00025,120]
[343977150,1733165806841,500.0,0.00025,120]
[343977151,1733165807152,1030.86,0.00025,120]
[343977152,1733165807515,8904.56,0.00025,120]
[343977153,1733165808974,505.38243275,0.00025,120]
[343977154,1733165809848,3334.7,0.00025,120]
[343977155,1733165810000,1474.42,0.00025,120]
[343977156,1733165810405,753.97,0.00025,120]
[343977157,1733165810474,3681.37,0.00025,120]
[343977158,1733165810622,806.25,0.00025,120]
[343977159,1733165810687,8126.4,0.00025,120]
[343977160,1733165810997,633.81,0.00025,120]
[343977161,1733165811551,1327.79,0.00025,120]
[343977162,1733165812003,679.68,0.00025,120]
[343977163,1733165812102,500.0,0.00025,120]
[343977164,1733165812566,2246.85,0.00025,120]
[343977165,1733165812829,980.32,0.00025,120]
[343977166,1733165814922,500.0,0.00025,120]
[343977167,1733165817157,3019.45,0.00025,120]
[343977168,1733165817363,6276.94,0.00025,120]
[343977169,1733165817509,500.0,0.00025,120]
[343977170,1733165818222,1019.38,0.00025,120]
[343977171,1733165818336,651.92,0.00025,120]
[343977172,1733165819399,500.0,0.00025,120]
[343977173,1733165819468,2737.66,0.00025,120]
[343977174,1733165819716,500.0,0.00025,120]
[343977175,1733165820564,500.0,0.00025,120]
[343977176,1733165820624,3305.13,0.00025,120]
[343977177,1733165821171,698.42,0.00025,120]
[343977178,1733165821234,314.80746657,0.00025,120]
[343977179,1733165821508,1232.96,0.00025,120]
[343977180,1733165822233,1838.06,0.00025,120]
[343977181,1733165823501,1864.59,0.00025,120]
[343977182,1733165823783,1588.67,0.00025,120]
[343977183,1733165824223,500.0,0.00025,120]
[343977184,1733165824699,1117.47,0.00025,120]
[343977185,1733165826406,3422.88,0.00025,120]
[343977186,1733165828186,500.0,0.00025,120]
[343977187,1733165828577,1630.39,0.00025,120]
[343977188,1733165830762,3299.15,0.00025,120]
[343977189,1733165831138,713.26,0.00025,120]
[343977190,1733165831530,500.0,0.00025,120]
[343977191,1733165832877,5752.3,0.00025,120]
[343977192,1733165833126,1903.47,0.00025,120]
[343977193,1733165833211,979.75,0.00025,120]
[343977194,1733165833293,500.0,0.00025,120]
[343977195,1733165833956,500.0,0.00025,120]
[343977196,1733165834173,2246.88,0.00025,120]
[343977197,1733165834232,500.0,0.00025,120]
[343977198,1733165834300,500.0,0.00025,120]
[343977199,1733165835764,1636.67,0.00025,120]
[343977200,1733165836807,2915.42,0.00025,120]
[343977201,1733165837286,2548.36,0.00025,120]
[343977202,1733165837649,1098.57,0.00025,120]
[343977203,1733165837784,3689.71,0.00025,120]
[343977204,1733165839472,5622.45,0.00025,120]
[343977205,1733165839680,500.0,0.00025,120]
[343977206,1733165839931,500.0,0.00025,120]
[343977207,1733165840528,500.0,0.00025,120]
[343977208,1733165840856,500.0,0.00025,120]
[343977209,1733165841062,671.16,0.00025,120]
[343977210,1733165841293,2215.29,0.00025,120]
[343977211,1733165843670,500.0,0.00025,120]
[343977212,1733165843726,746.6,0.00025,120]
[343977213,1733165843902,500.0,0.00025,120]
[343977214,1733165844961,500.0,0.00025,120]
[343977215,1733165845013,2230.48,0.00025,120]
[343977216,1733165846601,4940.57,0.00025,120]